Cogmind - Beta 11.1 @@@ ROGUE MODE // 2022.05.21 @ 15:10:48 Player: ChromeKnight Result: Destroyed by L-31 Rogue with Katana Performance ------------- Evolutions (2) 1000 Regions Visited (5) 1000 Robots Destroyed (35) 175 Value Destroyed (726) 726 Prototype IDs (23) 460 Alien Tech Used (0) 0 Bonus (300) 300 TOTAL SCORE: 3661 Bonus ------- Aligned with FarCom 300 Cogmind --------- Core Integrity 0/550 Matter 260/300 Energy 53/100 System Corruption 0% Temperature Cool (0) Movement Core (250) Ox4 Location -8/Materials Parts ------- > --- POWER (1) -------- (None) > --- PROPULSION (3) --- (None) > --- UTILITY (5) ------ Medium Storage Unit Visual Processing Unit Improved Signal Interpreter Core Analyzer > --- WEAPON (2) ------- Katana Makeshift Axe > --- INVENTORY (10) --- Improved Heat Sink Improved Heat Sink Coolant Injector Superbattery (1500) Weapon Cycler Improved Medium Armor Plating Chronowheel Beamcaster Firepult Peak State ------------ > --- POWER ------------ Improved Ion Engine > --- PROPULSION ------- Light Treads Light Treads Hover Unit > --- UTILITY ---------- Improved Heat Sink Large Storage Unit Visual Processing Unit Weapon Shielding Medium Armor Plating > --- WEAPON ----------- Arc Projector Katana > --- INVENTORY -------- Improved Heat Sink Improved Heat Sink Improved Heat Sink Coolant Injector Medium Storage Unit Superbattery Improved Signal Interpreter Core Analyzer Weapon Cycler Improved Medium Armor Plating Chronowheel Beamcaster Firepult Makeshift Axe [Rating: 29] Favorites ----------- Power Improved Ion Engine Engine Improved Ion Engine Propulsion Light Treads Treads Light Treads Hover Unit Hover Unit Utility Large Storage Unit Device Improved Heat Sink Storage Large Storage Unit Processor Visual Processing Unit Protection Weapon Shielding Weapon Light Assault Rifle Energy Gun Arc Projector Ballistic Gun Light Assault Rifle Launcher Rocket Launcher Slashing Weapon Katana Build | -11 -10 -10 -10 -9 -8 ------- Run | Scr Mat Min Exi Min Mat Slots Evolved 4 | . . . . . 4 Power . | . . . . . . Propulsion 1 | . . . . . 1 Utility 3 | . . . . . 3 Weapon . | . . . . . . Parts Attached 44 | 7 15 5 . 4 13 Power 7 | 1 5 . . 1 . Engine 7 | 1 5 . . 1 . Core . | . . . . . . Reactor . | . . . . . . Propulsion 10 | 2 4 1 . . 3 Treads 9 | 2 4 1 . . 2 Leg . | . . . . . . Wheel . | . . . . . . Hover 1 | . . . . . 1 Flight . | . . . . . . Utility 12 | 2 2 . . . 8 Device 3 | 1 . . . . 2 Storage 3 | 1 1 . . . 1 Processor 3 | . 1 . . . 2 Hackware . | . . . . . . Protection 3 | . . . . . 3 Artifact . | . . . . . . Weapon 15 | 2 4 4 . 3 2 Energy Gun 4 | . . 2 . 2 . Energy Cannon . | . . . . . . Ballistic Gun 7 | 2 4 1 . . . Ballistic Cannon . | . . . . . . Launcher 2 | . . 1 . 1 . Special Weapon . | . . . . . . Impact Weapon . | . . . . . . Slashing Weapon 2 | . . . . . 2 Piercing Weapon . | . . . . . . Special Melee Weapon . | . . . . . . Unidentified Prototypes . | . . . . . . Parts Lost 13 | . 3 2 . . 8 Power 1 | . . . . . 1 Propulsion 6 | . 1 1 . . 4 Utility 3 | . 1 . . . 2 Weapon 3 | . 1 1 . . 1 Highest Loss Streak 7 | . 2 2 . . 7 To Critical Strikes 1 | . 1 . . . . Average Slot Usage (%) 95 | . 94 92 100 99 91 Engine 12 | . 13 14 14 14 8 Treads 25 | . 26 24 28 28 19 Device 3 | . 9 . . . 7 Storage 13 | . 14 14 14 14 9 Processor 10 | . 2 14 14 14 9 Protection 3 | . . . . . 16 Energy Gun 9 | . . 2 28 13 8 Ballistic Gun 9 | . 27 17 . . . Launcher 4 | . . 3 . 14 2 Slashing Weapon 1 | . . . . . 6 Naked Turns . | . . . . . . Heaviest Build 44 | 14 29 31 31 35 44 Greatest Support 60 | 40 40 40 40 40 60 Greatest Overweight (x) 9 | 1 9 1 . . 4 Average Overweight (x) . | . . . . . . Largest Inventory Capacity 15 | 8 15 15 15 15 15 Average Capacity 14 | 7 12 15 15 15 14 Most Carried 15 | . 13 15 15 15 15 Average Carried 12 | . 5 13 14 14 14 Final Capacity 15 | 8 15 15 15 15 10 Final Carried 15 | . 12 15 15 15 10 Class Distribution -------------------- 97% | Mutant Dominant Class ---------------- Mutant | -10/Materials Mutant | -10/Mines Mutant | -10/Exiles Mutant | -9/Mines Mutant | -8/Materials Resources | -11 -10 -10 -10 -9 -8 ----------- Run | Scr Mat Min Exi Min Mat Matter Collected 876 | 261 264 165 . 96 90 Remotely . | . . . . . . Salvage Created 975 | 54 460 158 . 22 281 Parts 81 | 11 33 9 . 9 19 Haulers Intercepted 1 | . 1 . . . . Recyclers Shooed 2 | . 2 . . . . Parts Field Recycled . | . . . . . . Retrieved Matter . | . . . . . . Parts Self-Destructed . | . . . . . . Prevented . | . . . . . . Kills | -11 -10 -10 -10 -9 -8 ------- Run | Scr Mat Min Exi Min Mat Combat Hostiles Destroyed 25 | . 10 6 . 4 5 Melee 3 | . . . . . 3 Guns 15 | . 10 3 . . 2 AOE 7 | . . 3 . 4 . Classes Destroyed 9 | 1 6 . . . 2 Worker 1 | . . . . . 1 Tunneler 4 | 3 . 1 . . . Hauler 1 | . 1 . . . . Recycler 2 | . 2 . . . . Operator 1 | . 1 . . . . Watcher 1 | . 1 . . . . Swarmer 12 | . 6 2 . 4 . Grunt 12 | . 4 4 . . 4 Sentry 1 | . . . . . 1 Best Kill Streak 4 | 3 3 4 . 4 2 Combat Bots Only 4 | . 3 3 . 4 2 Max Kills in Single Turn 3 | 1 1 3 . 3 1 Gunslinging . | . . . . . . Exploded 3 | . . 2 . 3 . Melee 1 | . . . . . 1 Uniques/NPCs Destroyed . | . . . . . . Combat | -11 -10 -10 -10 -9 -8 -------- Run | Scr Mat Min Exi Min Mat Damage Taken 2640 | . 692 286 . 107 1555 Core 685 | . 91 27 . . 567 Absorbed by Shields . | . . . . . . Redirected to Shielding 46 | . . . . . 46 Core Remaining (%) 76 | 100 . . . 52 . Volleys Fired 91 | 3 58 18 . 3 9 Largest 2 | 2 2 2 . 2 1 Hottest 83 | 40 40 53 . 83 55 Shots Fired 161 | 6 105 35 . 6 9 Gun 156 | 6 105 33 . 3 9 Cannon . | . . . . . . Launcher 5 | . . 2 . 3 . Special . | . . . . . . Kinetic 144 | 6 105 33 . . . Thermal 3 | . . . . 3 . Explosive 5 | . . 2 . 3 . Electromagnetic 9 | . . . . . 9 Robot Hit Streak 13 | 1 13 8 . 2 5 Robot Miss Streak 5 | 1 5 3 . . 3 Penetration Max . | . . . . . . Secondary Targets . | . . . . . . Shots Hit Robots 100 | 3 63 21 . 2 11 Core Hits 57 | 4 28 15 . 4 6 Critical Kills 1 | . 1 . . . . Critical Parts Destroyed . | . . . . . . Critical Strikes 1 | . 1 . . . . Destroy 1 | . 1 . . . . Melee Attacks 13 | . . . . . 13 Impact . | . . . . . . Slashing 13 | . . . . . 13 Piercing . | . . . . . . Sneak Attacks 2 | . . . . . 2 Combat Hostiles . | . . . . . . Follow-up Attacks . | . . . . . . Damage Inflicted 1741 | 36 673 372 . 352 308 Guns 927 | 36 664 157 . 12 58 Cannons . | . . . . . . Explosions 551 | . . 211 . 340 . Melee 250 | . . . . . 250 Ramming 13 | . 9 4 . . . Kinetic 857 | 36 664 157 . . . Thermal 12 | . . . . 12 . Explosive 551 | . . 211 . 340 . Electromagnetic 58 | . . . . . 58 Impact . | . . . . . . Slashing 250 | . . . . . 250 Piercing . | . . . . . . Highest Corruption 1 | . . 1 1 1 . Average Corruption 1 | . . 1 1 1 . Corruption Purged . | . . . . . . Corruption Blocked . | . . . . . . Effects 12 | . . 4 2 6 . Message Errors 2 | . . 1 . 1 . Matter Fused 3 | . . . 1 2 . Heat Flow Errors 2 | . . . 1 1 . Energy Discharges 1 | . . 1 . . . Data Loss (minor) 3 | . . 2 . 1 . Alerts 1 | . . . . 1 . Overload Shots . | . . . . . . Overflow Damage 38 | . . 10 . . 28 Projectiles . | . . . . . . Explosions 10 | . . 10 . . . Melee 28 | . . . . . 28 Knockbacks . | . . . . . . Impact . | . . . . . . Kinetic . | . . . . . . Secondary . | . . . . . . Self-Inflicted Damage 117 | . . 57 . 60 . Shots 3 | . . 1 . 2 . Rammed 1 | . 1 . . . . Targets Rammed 1 | . 1 . . . . Kicked . | . . . . . . Crushed . | . . . . . . Highest Temperature 167 | . 18 28 167 85 20 Average Temperature 18 | . 6 4 87 40 11 Received Heat Transfer 636 | . 240 54 . . 342 Siege Activations . | . . . . . . Robots Corrupted . | . . . . . . Combat Hostiles . | . . . . . . Parts Fried . | . . . . . . Impact Corruptions . | . . . . . . Robots Melted . | . . . . . . Combat Hostiles . | . . . . . . Parts Melted . | . . . . . . Heat Transferred 37 | . . . . 37 . Parts Sabotaged . | . . . . . . Parts Stolen . | . . . . . . Parts Stripped . | . . . . . . Power Chain Reactions . | . . . . . . Missiles Intercepted . | . . . . . . Alert | -11 -10 -10 -10 -9 -8 ------- Run | Scr Mat Min Exi Min Mat Peak Influence 200 | 15 200 132 . 162 100 Initial 19 | . 9 19 . . . Average 61 | 4 96 49 . 63 41 Maximum Alert Level 1 | . 1 . . . . Low Security (%) 99 | 100 99 100 . 100 100 Level 1 . | . . . . . . Level 2 . | . . . . . . Level 3 . | . . . . . . Level 4 . | . . . . . . Level 5 . | . . . . . . High Security . | . . . . . . Max Security . | . . . . . . Squads Dispatched 6 | . 1 . . 1 4 Investigation 3 | . . . . 1 2 Extermination . | . . . . . . Reinforcement 2 | . 1 . . . 1 Assault . | . . . . . . Garrison 1 | . . . . . 1 Intercept . | . . . . . . Searches Triggered . | . . . . . . Construction Impeded . | . . . . . . Haulers Reinforced . | . . . . . . Active Scanning Responses . | . . . . . . Cargo Convoy Interrupts . | . . . . . . Stealth | -11 -10 -10 -10 -9 -8 --------- Run | Scr Mat Min Exi Min Mat Distress Signals 2 | . 1 1 . . . Communications Jammed . | . . . . . . Distress Signals . | . . . . . . Times Spotted 52 | . 20 11 . 4 17 Peak Tracking Total 7 | . 6 3 . 1 7 Tactical Retreats 3 | . 1 1 . . 1 Traps | -11 -10 -10 -10 -9 -8 ------- Run | Scr Mat Min Exi Min Mat Traps Triggered 4 | . 3 . . . 1 Indirectly . | . . . . . . Trap Hack Attempts . | . . . . . . Triggered . | . . . . . . Disarmed . | . . . . . . Reprogrammed . | . . . . . . Reused . | . . . . . . Traps Extracted . | . . . . . . Installed . | . . . . . . Triggered . | . . . . . . Machines | -11 -10 -10 -10 -9 -8 ---------- Run | Scr Mat Min Exi Min Mat Machines Disabled . | . . . . . . Max in Single Turn . | . . . . . . Machines Sabotaged . | . . . . . . Garrisons Compromised . | . . . . . . Overloaded Fab Kills . | . . . . . . Hacking | -11 -10 -10 -10 -9 -8 --------- Run | Scr Mat Min Exi Min Mat Machines Accessed 9 | . 3 . 4 1 1 Terminals 3 | . 3 . . . . Fabricators . | . . . . . . Repair Stations . | . . . . . . Recycling Units . | . . . . . . Scanalyzers . | . . . . . . Garrison Access 1 | . . . . . 1 Total Hacks 35 | . 5 . 27 1 2 Successful 31 | . 3 . 27 1 . Failed 4 | . 2 . . . 2 Catastrophic 1 | . . . . . 1 Database Lockouts . | . . . . . . Manual 4 | . 3 . 1 . . Terminals 5 | . 5 . . . . Fabricators . | . . . . . . Repair Stations . | . . . . . . Recycling Units . | . . . . . . Scanalyzers . | . . . . . . Garrison Access 2 | . . . . . 2 Terminal Hacks 30 | . 2 . 27 1 . Record 26 | . . . 26 . . Open Door 1 | . . . . 1 . Zone Layout 2 | . 2 . . . . EX-Prototype ID Bank 1 | . . . 1 . . Fabricator Hacks . | . . . . . . Repair Station Hacks . | . . . . . . Recycling Unit Hacks . | . . . . . . Scanalyzer . | . . . . . . Garrison Access Hacks . | . . . . . . Unauthorized Hacks 1 | . 1 . . . . Terminals 1 | . 1 . . . . Botnet 1 | . 1 . . . . Fabricators . | . . . . . . Repair Stations . | . . . . . . Recycling Units . | . . . . . . Scanalyzers . | . . . . . . Garrison Access . | . . . . . . Data Cores Recovered . | . . . . . . Used . | . . . . . . Hacking Detections 3 | . 2 . . . 1 Full Trace Events 1 | . . . . . 1 Feedback Events . | . . . . . . Feedback Blocked . | . . . . . . Robot Schematics Acquired . | . . . . . . Robots Built . | . . . . . . Authchips . | . . . . . . Time . | . . . . . . Total Robot Build Rating . | . . . . . . Part Schematics Acquired . | . . . . . . Parts Built . | . . . . . . Authchips . | . . . . . . Time . | . . . . . . Total Part Build Rating . | . . . . . . Parts Repaired . | . . . . . . Time . | . . . . . . Parts Recycled . | . . . . . . Recycled Matter . | . . . . . . Retrieved Matter . | . . . . . . Retrieved Components . | . . . . . . Parts Scanalyzed . | . . . . . . Part Schematics Acquired . | . . . . . . Parts Damaged . | . . . . . . Bothacking | -11 -10 -10 -10 -9 -8 ------------ Run | Scr Mat Min Exi Min Mat Used RIF Installer . | . . . . . . Robots Hacked . | . . . . . . Non-combat . | . . . . . . Combat . | . . . . . . Robot Hacks Applied . | . . . . . . Relay Couplers Released . | . . . . . . Fabnet Peak Effective % . | . . . . . . Robots Rewired . | . . . . . . Allies Hacked . | . . . . . . Hacks Repelled . | . . . . . . Allies | -11 -10 -10 -10 -9 -8 -------- Run | Scr Mat Min Exi Min Mat Total Allies . | . . . . . . Largest Group . | . . . . . . Highest-Rated Group . | . . . . . . Highest-Rated Ally . | . . . . . . Total Orders . | . . . . . . Ally Attacks . | . . . . . . Total Damage . | . . . . . . Kills . | . . . . . . Allies Corrupted . | . . . . . . Allies Melted . | . . . . . . Intel | -11 -10 -10 -10 -9 -8 ------- Run | Scr Mat Min Exi Min Mat Robot Analysis Total . | . . . . . . Derelict Logs Recovered 2 | . . 2 . . . Drone Launches . | . . . . . . Drone Recoveries . | . . . . . . Exploration | -11 -10 -10 -10 -9 -8 ------------- Run | Scr Mat Min Exi Min Mat Turns Passed 4045 | 79 825 945 473 1004 719 Spaces Moved 1917 | 41 381 408 293 551 243 Core 8 | 5 1 . . . 2 Treads 1909 | 36 380 408 293 551 241 Legs . | . . . . . . Wheels . | . . . . . . Hover . | . . . . . . Flight . | . . . . . . Fastest Speed 50 | 50 160 160 160 160 160 Average Speed 171 | 149 163 179 160 160 216 Slowest Speed 500 | 160 500 240 160 160 320 Overloaded Moves . | . . . . . . Propulsion Burnouts . | . . . . . . Robots Hopped . | . . . . . . Cave-ins Triggered . | . . . . . . Exploration Rate (%) 54 | 3 85 76 64 68 32 Regions Visited 5 Branch Regions 3 Pre-discovered Areas 1 | . . 1 . . . Known Exits Taken . | . . . . . . Unknown Exits Taken 5 | 1 1 1 1 1 . Scrap Searched 4 | . . 2 . 2 . Spaces Dug 12 | . . . . 9 3 Terrain Destroyed 46 | . . 15 . 28 3 Melee 3 | . . . . . 3 Projectile . | . . . . . . AOE 43 | . . 15 . 28 . Terrain Rammed 1 | . . 1 . . . Walls Destroyed . | . . . . . . Machines Disabled . | . . . . . . Actions | -11 -10 -10 -10 -9 -8 --------- Run | Scr Mat Min Exi Min Mat Total 2504 | 50 486 590 299 669 410 Wait 389 | . 13 157 . 101 118 Move 1912 | 40 380 407 292 550 243 Hop . | . . . . . . Pick Up 28 | . 13 1 3 5 6 Fast Attach 21 | 7 7 3 . 1 3 Attach 9 | . 1 . . . 8 Detach 1 | . . 1 . . . Swap 14 | . 7 2 . 3 2 Drop 24 | . 6 . 4 6 8 Fire 91 | 3 58 18 . 3 9 Melee 13 | . . . . . 13 Ram 1 | . . 1 . . . Kick . | . . . . . . Crush 1 | . 1 . . . . Escape Stasis . | . . . . . . Rewire . | . . . . . . Trap . | . . . . . . Miscellaneous . | . . . . . . Route ------- -11/Scrapyard -10/Materials (discovered 4 exits: [*Mat x2] / [*Min x2]) -10/Mines (discovered 2 exits: [*Mat] / *Exi) -10/Exiles (discovered 2 exits: *Min x2) -9/Mines -8/Materials History --------- Turn | Location | Event 22 | -11/Scrapyard | Discovered new exit (range 15) 80 | -11/Scrapyard | Entered Materials 88 | -10/Materials | Discovered new exit (range 15) 169 | -10/Materials | Discovered new exit (range 8) 304 | -10/Materials | Build established: Mutant 415 | -10/Materials | Discovered new exit (range 10) 693 | -10/Materials | Discovered new exit (range 8) 905 | -10/Materials | Entered Mines 915 | -10/Mines | Met a Derelict bent on vengeance 998 | -10/Mines | Learned location of Storage (-7) 1219 | -10/Mines | Discovered new exit (range 13) 1293 | -10/Mines | Received a Rocket Launcher from a helpful Derelict 1371 | -10/Mines | Excavation squad dispatched 1371 | -10/Mines | A large section of the Mines collapsed 1622 | -10/Mines | Learned Materials stockpile data 1843 | -10/Mines | Deemed a non-threat by the Exiles lab entrance 1843 | -10/Mines | Discovered new exit (range 5) 1850 | -10/Mines | Entered Exiles 1874 | -10/Exiles | Discovered new exit (range 17) 1894 | -10/Exiles | Met 8R-AWN 1916 | -10/Exiles | Met EX-HEX 1977 | -10/Exiles | Met EX-BIN 2102 | -10/Exiles | Aligned with FarCom system 2103 | -10/Exiles | Given EX-Vault access code 2150 | -10/Exiles | Opened EX-Vault 2163 | -10/Exiles | Found Chronowheel 2167 | -10/Exiles | Found Superbattery 2171 | -10/Exiles | Found Firepult 2206 | -10/Exiles | Warned to stay clear of 0b10 Research branches 2249 | -10/Exiles | Met EX-DEC 2303 | -10/Exiles | Discovered new exit (range 15) 2323 | -10/Exiles | Stole three prototypes: Chronowheel, Superbattery, Firepult 2323 | -10/Exiles | Entered Mines 2377 | -9/Mines | Discovered new exit (range 3) 2520 | -9/Mines | Met a Derelict shopkeep closing up shop 2714 | -9/Mines | A weapon hastily lodged in a ceiling crevice suddenly fell to the ground 3327 | -9/Mines | Entered Materials 3327 | -8/Materials | Evolved 4 slots: Propulsion x1, Utility x3 3355 | -8/Materials | Garrison activated, responded to threat 4029 | -8/Materials | Core integrity fell below 50% 4040 | -8/Materials | Core integrity fell below 20% 4046 | -8/Materials | Destroyed by L-31 Rogue with Katana Last Messages --------------- 03985_ C-30 ARC bursts open, deploying its payload. 03985_ L-31 Rogue unfolds itself. 03985_ G-47 Trooper unfolds itself. 04002_ Med. Armor Plating destroyed. 04003_ Slug penetrates Wall. 04003_ Arc Projector destroyed. 04006_ Slug penetrates Wall. 04008_ Lgt. Treads destroyed. 04009_ Slug penetrates Wall. 04016_ Imp. Ion Engine destroyed. 04016_ Penetrated by Slug. 04022_ Lgt. Treads destroyed. 04024_ Imp. Heat Sink destroyed. 04027_ U-05 Engineer builds a Wall. 04034_ Lgt. Treads destroyed. 04038_ Dropped Weapon Shielding. 04040_ Dropped Imp. Heat Sink. 04041_ Dropped Lrg. Storage Unit. 04041_ S-10 Pest destroyed. 04042_ Slug penetrates G-47 Trooper. Map ----- +----------------------------------------------------+ | ?????????????????????????????????????????????????? | | ?????????????????????????????????????????????????? | | ?????????????????????????????????????????????????? | | ?????????????????????????????????????????????????? | | ?????????????????????????????????????????????????? | | ?????????????????????????????????????????????????? | | ?????????????????????????????????????????????????? | | ?????????????????????????????????????????????????? | | ?????????????????????????????????????????????????? | | ?????????????????????????????????????????????????? | | ?????????????????????????????????????????????????? | | ??????????????????????!??????????????????????????? | | ?????????????????????????????????????????????????? | | ?????????????????? ??????????????????????????????? | | ?????????????????? ##########????????????????????? | | ??????????????????? ????????????????????? | | ??????????????????? #????????????????????? | | ???????????????????? #????????????????????? | | ????????????????????? #????????????????????? | | ????????????????????? #????????????????????? | | ?????????????????????? #????????????????????? | | ??????????????????????? #????????????????????? | | ???????????????????????# #????????????????????? | | ???????????????????????# #????????????????????? | | ???????????????????????# #????????????????????? | | ???????????????????????# @ #????????????????????? | | ???????????????????????# l #????????????????????? | | ???????????????????????# !!#????????????????????? | | ???????????????????????#g%=!#????????????????????? | | ???????????????????????# sgs#????????????????????? | | ???????????????????????# #???????########?????? | | ???????????????????????# h#???????# !#?????? | | ???????????????????????# #???????# """ #?????? | | ???????????????????????# #???????# """ #?????? | | ???????????w???????????# #???????# """ #?????? | | ???????????????????##### ######### #?????? | | ???????????????????+ + #?????? | | ???????????????????##### ####+###?????? | | ???????????????????????# ######?? | | ???????????????????????# ## #?? | | ???????????????????????##### ## #?? | | ???????????????????????????# ## #?? | | ???????????????????????????# ## #?? | | ???????????????????????????# ## #?? | | ???????????????????????????# ## ##+ | | ???????????????????????????# "## ## | | ???????????????????????????# "%####+## | | ???????????????????????? " =% | | ?????????????????????????##################### | | ?????????????????????????????????????????????# | +----------------------------------------------------+ Best States ------------- Heat Dissipation 45 Energy Generation 12 Energy Capacity 265 Matter Stores 300 Matter Capacity 300 Sight Range 18 Terrain Scan Density 10 Armor Coverage 225 Weapon Shielding 33 Evasion (%) 40 Core Analysis 6 Recoil Reduction 3 Item Schematics ----------------- None Robot Schematics ------------------ None Fabricated ------------ Nothing Alien Tech Used ----------------- None Achievements -------------- None Challenges ------------ None Game ------ Seed SmallRecyclingCutter Manual? 0 Play Time 00:24:07 Cumulative 276.1 hours Start 2022.05.21 @ 12:21:27 End 2022.05.21 @ 15:10:48 Sessions 3 Manual Loads 0 Difficulty Rogue Special Mode None Game No. 515 Rogue 360 Adventurer 148 Explorer 7 Win Type - Total 10 Types 8/0/1/1/0/0/0/0/0 Lore% 72 Gallery% 84 Achievement% 66 Wizard Run 0 Options --------- ASCII 0 Keyboard 0 Movement Numpad Keybinds 0 Fullscreen 1 Font 18/SmallcapsGlow Map View 76x50 Tactical HUD 1 Map Filters NONE Filters NONE Steam 1 RUN: 9d5c39d2-9ea4-4ce6-af7f-6134eacaecbe